fUST/lending_fUST_20250805
["ID","MTS","AMOUNT","RATE_DAILY","PERIOD"]
[377421608,1754403544976,-231.72586818,0.00027,3]
[377421609,1754403544997,-160.0,0.00027,3]
[377421610,1754403545019,-842.25606042,0.00027,3]
[377421611,1754403545040,-160.0,0.00027,3]
[377421612,1754403545062,-216.4206905,0.00027,3]
[377421613,1754403545083,-160.0,0.00027,3]
[377421614,1754403545107,-160.0,0.00027,3]
[377421615,1754403545129,-4876.03030035,0.00027,3]
[377421623,1754403616447,-500.0,0.00026905,2]
[377421624,1754403616470,-300.0,0.00026999,2]
[377421625,1754403616492,-7778.99505854,0.00027,3]
[377421626,1754403616514,-10024.00494146,0.00027,3]
[377421627,1754403634486,231.34869582,0.000249,2]
[377421628,1754403634634,231.34869557,0.000249,2]
[377421629,1754403634855,231.34869557,0.000249,2]
[377421630,1754403634970,231.34869557,0.000249,2]
[377421631,1754403635293,231.34869557,0.000249,2]
[377421632,1754403635548,231.34869557,0.000249,2]
[377421633,1754403635695,231.34869557,0.000249,2]
[377421634,1754403635794,231.34869557,0.000249,2]
[377421635,1754403635905,231.34869557,0.00025455,3]
[377421636,1754403637473,7134.74665809,0.00026534,2]
[377421637,1754403637506,10000.0,0.00026534,2]
[377421638,1754403637537,7765.25334191,0.00026534,2]
[377421641,1754403641373,1380.0,0.00025833,2]
[377421644,1754403693448,-231.34869557,0.00026762,6]
[377421645,1754403693474,-300.0,0.00026999,2]
[377421646,1754403693497,-2631.02041743,0.00027,3]
[377421647,1754403693518,-160.0,0.00027,3]
[377421648,1754403693540,-231.72586818,0.00027,3]
[377421649,1754403693562,-27347.90501882,0.00027188,2]
[377421650,1754403708484,854.74665809,0.000249,2]
[377421651,1754403708523,283.75852879,0.000249,2]
[377421652,1754403708568,1138.50518678,0.000249,2]
[377421653,1754403708617,1138.50518678,0.000249,2]
[377421654,1754403708693,1138.50518678,0.000249,2]
[377421655,1754403708905,1138.50518678,0.000249,2]
[377421656,1754403709006,1138.50518678,0.000249,2]
[377421657,1754403709097,1138.50518678,0.000249,2]
[377421658,1754403709200,1138.50518678,0.000249,2]
[377421659,1754403709297,1138.50518678,0.00025455,3]
[377421663,1754403752651,608.19997697,0.000249,2]
[377421664,1754403752687,385.60819864,0.000249,2]
[377421665,1754403752896,993.80817535,0.000249,2]
[377421666,1754403752987,993.80817535,0.000249,2]
[377421667,1754403754464,150.0,0.00026116,2]
[377421668,1754403755412,993.80817535,0.000249,2]
[377421669,1754403755538,993.80817535,0.000249,2]
[377421670,1754403755663,993.80817535,0.000249,2]
[377421671,1754403756120,993.80817535,0.000249,2]
[377421672,1754403756278,993.80817535,0.000249,2]
[377421673,1754403756699,993.80817535,0.00025455,3]
[377421676,1754403839017,186.339185,0.00026006,2]
[377421677,1754403845258,-993.80817535,0.00026762,6]
[377421678,1754403845279,-300.0,0.00026997,2]
[377421679,1754403845302,-500.0,0.00026998,2]
[377421680,1754403845323,-500.0,0.00026998,2]
[377421681,1754403845344,-500.0,0.00026998,2]
[377421682,1754403845365,-500.0,0.00026998,2]
[377421683,1754403845391,-398.67778961,0.00026998,2]
[377421684,1754403845411,-500.0,0.00026998,2]
[377421685,1754403845436,-500.0,0.00026998,2]
[377421686,1754403845462,-500.0,0.00026998,2]
[377421687,1754403845483,-500.0,0.00026998,2]
[377421688,1754403845505,-645.19849498,0.00026998,2]
[377421689,1754403845528,-429.36996686,0.00026998,2]
[377421690,1754403845553,-500.0,0.00026998,2]
[377421691,1754403845584,-500.0,0.00026998,2]
[377421692,1754403845611,-500.0,0.00026998,2]
[377421693,1754403845642,-501.9808262,0.00026998,2]
[377421694,1754403845665,-500.0,0.00026998,2]
[377421695,1754403845691,-500.0,0.00026998,2]
[377421696,1754403845713,-408.72831793,0.00026998,2]
[377421697,1754403845736,-388.23642907,0.00026998,2]
[377421698,1754403926115,917.66646716,0.000249,2]
[377421699,1754403926258,409.9207464,0.000249,2]
[377421700,1754403926294,507.74572075,0.000249,2]
[377421701,1754403926360,917.66646715,0.000249,2]
[377421702,1754403926473,917.66646715,0.000249,2]
[377421703,1754403926580,917.66646715,0.000249,2]
[377421704,1754403926694,917.66646715,0.000249,2]
[377421705,1754403926782,917.66646715,0.000249,2]
[377421706,1754403926888,917.66646715,0.000249,2]
[377421707,1754403926975,917.66646715,0.00025455,3]
[377421709,1754403935309,3068.5890092,0.00026575,2]
[377421710,1754403935336,1931.4109908,0.00026575,2]
[377421711,1754403945901,1000.0,0.00025968,2]
[377421712,1754403951395,5000.0,0.00026575,2]
[377421713,1754403967312,2068.5890092,0.00026575,2]
[377421714,1754403967340,2931.4109908,0.00026575,2]
[377421715,1754403977264,150.0,0.00025029,2]
[377421716,1754403979413,165.42,0.00023908,2]
[377421717,1754403982889,5000.0,0.00026575,2]
[377421718,1754403999283,1753.1690092,0.00026575,2]
[377421719,1754403999311,3246.8309908,0.00026575,2]
[377421721,1754404015469,5000.0,0.00026575,2]
[377421724,1754404032067,1753.1690092,0.00026575,2]
[377421725,1754404032096,3246.8309908,0.00026575,2]
[377421726,1754404050960,5000.0,0.00026575,2]
[377421727,1754404057436,488.81193705,0.00025088,2]
[377421739,1754404067761,1264.35707215,0.00026575,2]
[377421740,1754404067793,3735.64292785,0.00026575,2]
[377421742,1754404085054,5000.0,0.00026575,2]
[377421743,1754404097320,201.04639272,0.000125,2]
[377421744,1754404097765,643.13958626,0.000249,2]
[377421745,1754404097872,420.17109317,0.000249,2]
[377421746,1754404097909,222.96849289,0.000249,2]
[377421747,1754404098150,643.13958606,0.000249,2]
[377421748,1754404098357,643.13958606,0.000249,2]
[377421749,1754404098668,643.13958606,0.000249,2]
[377421750,1754404098716,643.13958606,0.000249,2]
[377421751,1754404098781,643.13958606,0.000249,2]
[377421752,1754404098891,643.13958606,0.000249,2]
[377421753,1754404098994,643.13958606,0.00025455,3]
[377421757,1754404111365,2043.34852277,0.0002,2]
[377421758,1754404114355,3231.70588192,0.0002,2]
[377421759,1754404114383,6167.14767131,0.0002,2]
[377421760,1754404118742,363.70522638,0.0002,2]
[377421761,1754404119152,3469.14710231,0.0002,2]
[377421762,1754404119186,9614.42870479,0.0002,2]
[377421763,1754404123031,150.999999,0.0002,120]
[377421764,1754404123337,385.57129521,0.0002,2]
[377421765,1754404123363,10000.0,0.0002,2]
[377421766,1754404123389,9322.27076874,0.0002,2]
[377421767,1754404124551,677.72923126,0.0002,2]
[377421768,1754404124578,6322.27076874,0.0002,2]
[377421769,1754404125046,302.0,0.00021,2]
[377421770,1754404125394,3375.72923126,0.0002,2]
[377421771,1754404125422,10000.0,0.0002,2]
[377421772,1754404125447,3316.23169614,0.0002,2]
[377421774,1754404128222,3800.0,0.00017,2]
[377421775,1754404133182,2883.76830386,0.00026575,2]
[377421776,1754404133210,2116.23169614,0.00026575,2]
[377421777,1754404139593,336.636155,0.00013699,2]
[377421778,1754404140034,336.636155,0.00020187,2]
[377421780,1754404152758,5000.0,0.00026575,2]
[377421781,1754404165181,428.76,0.000265,2]
[377421783,1754404170104,1781.73599386,0.00026575,2]
[377421784,1754404170140,3218.26400614,0.00026575,2]
[377421785,1754404174058,150.0,0.00025034,2]
[377421786,1754404179184,6631.73599386,0.00026574,2]
[377421787,1754404179209,5628.68940541,0.00026574,2]
[377421788,1754404186195,4371.31059459,0.00026575,2]
[377421789,1754404186221,628.68940541,0.00026575,2]
[377421790,1754404192281,428.77046715,0.000265,2]
[377421791,1754404197248,305.85557,0.00025778,2]
[377421792,1754404197627,275.3458674,0.00026044,2]
[377421793,1754404198770,168.6489483,0.0002614,2]
[377421794,1754404203962,5000.0,0.00026575,2]
[377421795,1754404219313,3192.68974174,0.00025968,2]
[377421796,1754404219340,10000.0,0.00025968,2]
[377421797,1754404219366,431.31511856,0.00025968,2]
[377421798,1754404220712,5000.0,0.00026575,2]
[377421833,1754404233352,-336.636155,0.00026676,2]
[377421835,1754404233362,-643.13958606,0.00026762,6]
[377421837,1754404233372,-300.0,0.00026994,2]
[377421839,1754404233381,-300.0,0.00026994,2]
[377421842,1754404233391,-1200.0,0.00026994,2]
[377421843,1754404233400,-206.30614186,0.00026995,2]
[377421846,1754404233410,-500.0,0.00026995,2]
[377421848,1754404233419,-500.0,0.00026995,2]
[377421850,1754404233432,-500.0,0.00026995,2]
[377421852,1754404233442,-500.0,0.00026995,2]
[377421853,1754404233451,-500.0,0.00026995,2]
[377421855,1754404233461,-221.71243942,0.00026995,2]
[377421858,1754404233473,-278.28756058,0.00026995,2]
[377421860,1754404233483,-24.54346539,0.00026995,2]
[377421863,1754404233508,-475.45653461,0.00026995,2]
[377421865,1754404233517,-478.9798433,0.00026995,2]
[377421867,1754404233527,-500.0,0.00026995,2]
[377421869,1754404233536,-500.0,0.00026995,2]
[377421871,1754404233546,-500.0,0.00026995,2]
[377421873,1754404233556,-500.0,0.00026995,2]
[377421876,1754404233565,-500.0,0.00026995,2]
[377421878,1754404233574,-500.0,0.00026995,2]
[377421880,1754404233584,-500.0,0.00026995,2]
[377421881,1754404233593,-500.0,0.00026995,2]
[377421884,1754404233603,-500.0,0.00026995,2]
[377421886,1754404233613,-500.0,0.00026995,2]
[377421888,1754404233623,-500.0,0.00026995,2]
[377421890,1754404233633,-500.0,0.00026995,2]
[377421891,1754404233643,-500.0,0.00026995,2]
[377421893,1754404233653,-500.0,0.00026995,2]
[377421895,1754404233663,-500.0,0.00026995,2]
[377421897,1754404233674,-500.0,0.00026995,2]
[377421898,1754404233684,-500.0,0.00026995,2]
[377421901,1754404233694,-500.0,0.00026995,2]
[377421902,1754404233704,-500.0,0.00026995,2]
[377421905,1754404233714,-500.0,0.00026995,2]
[377421906,1754404233723,-430.06,0.00026995,2]
[377421909,1754404233734,-500.0,0.00026995,2]
[377421910,1754404233743,-500.0,0.00026995,2]
[377421912,1754404233753,-500.0,0.00026995,2]
[377421914,1754404233762,-500.0,0.00026995,2]
[377421916,1754404233773,-500.0,0.00026995,2]
[377421918,1754404233783,-250.0,0.00026995,2]
[377421920,1754404233793,-500.0,0.00026995,2]
[377421931,1754404233893,-691.6,0.00026996,2]
[377421934,1754404233904,-176.143,0.00027,15]
[377421936,1754404233913,-231.72586818,0.00027,3]
[377421938,1754404233924,-568.29143776,0.00027,50]
[377421940,1754404233933,-12655.02535889,0.00027,3]
[377421942,1754404233942,-12655.02535889,0.00027,3]
[377421944,1754404233953,-7029.99738338,0.00027188,2]
[377421946,1754404233962,-500.0,0.0002729,2]
[377421948,1754404233972,-500.0,0.0002729,2]
[377421950,1754404233986,-10417.6528058,0.000274,2]
[377421952,1754404233999,-681.38330827,0.00027768,2]
[377421954,1754404234009,-152.88,0.0002779,15]
[377421956,1754404234020,-152.86,0.0002779,15]
[377421958,1754404234030,-500.0,0.00027838,5]
[377421960,1754404234040,-152.88,0.0002789,15]
[377421962,1754404234050,-152.86,0.0002789,15]
[377421964,1754404234061,-1569.52596647,0.00027942,2]
[377421966,1754404234071,-160.0,0.00027943,2]
[377421967,1754404234080,-160.0,0.00027948,2]
[377421968,1754404234091,-152.88,0.0002799,15]
[377421969,1754404234100,-231.72586818,0.00028,10]
[377421970,1754404234109,-312.16666667,0.00028,10]
[377421971,1754404234118,-12655.02535889,0.00028,10]
[377421972,1754404234127,-493.0194813,0.00028042,30]
[377421973,1754404234137,-430.7234783,0.00028042,30]
[377421974,1754404234146,-430.7234783,0.00028042,30]
[377421975,1754404234156,-430.7234783,0.00028042,30]
[377421976,1754404234165,-430.7234783,0.00028042,30]
[377421977,1754404234177,-861.2685563,0.00028042,30]
[377421978,1754404234187,-201.3747688,0.00028042,30]
[377421979,1754404234196,-643.13958606,0.00028069,9]
[377421980,1754404234205,-430.7234783,0.00028141,30]
[377421981,1754404234214,-430.7234783,0.00028241,30]
[377421982,1754404234223,-430.7234783,0.00028341,30]
[377421983,1754404234233,-153.0,0.00028588,30]
[377421984,1754404234242,-212.29195268,0.00028706,2]
[377421985,1754404234252,-500.0,0.00028973,5]
[377421986,1754404234261,-22188.54324152,0.00028983,2]
[377421987,1754404234270,-276.6,0.00029,2]
[377421988,1754404234279,-41545.62,0.00029,2]
[377421989,1754404234288,-325.0,0.00029001,7]
[377421990,1754404234297,-160.0,0.00029001,7]
[377421991,1754404234306,-160.0,0.00029001,7]
[377421992,1754404234316,-160.0,0.00029001,7]
[377421993,1754404234325,-175.16679718,0.00029001,7]
[377421994,1754404234333,-165.59759346,0.00029001,7]
[377421995,1754404234342,-152.0,0.00029001,7]
[377421996,1754404234352,-152.0,0.00029001,7]
[377421997,1754404234361,-152.0,0.00029001,7]
[377421998,1754404234371,-152.0,0.00029001,7]
[377421999,1754404234380,-152.0,0.00029001,7]
[377422000,1754404234390,-155.0,0.00029001,7]
[377422001,1754404234400,-160.0,0.00029001,7]
[377422002,1754404234409,-212.09151012,0.00029001,7]
[377422003,1754404234419,-826.25857237,0.00029001,7]
[377422004,1754404234431,-325.0,0.00029001,7]
[377422005,1754404234442,-325.0,0.00029001,7]
[377422006,1754404234452,-325.0,0.00029001,7]
[377422008,1754404234462,-325.0,0.00029001,7]
[377422010,1754404234471,-325.0,0.00029001,7]
[377422012,1754404234481,-325.0,0.00029001,7]
[377422014,1754404234491,-325.0,0.00029001,7]
[377422016,1754404234501,-160.0,0.00029107,2]
[377422018,1754404234510,-842.25606042,0.00029108,2]
[377422020,1754404234520,-160.0,0.00029108,2]
[377422022,1754404234530,-231.72586818,0.00029108,2]
[377422024,1754404234539,-12655.02535889,0.00029108,2]
[377422026,1754404234549,-160.0,0.00029108,2]
[377422028,1754404234559,-216.4206905,0.00029108,2]
[377422030,1754404234568,-160.0,0.00029108,2]
[377422032,1754404234578,-245.65024473,0.0002917,2]
[377422034,1754404234587,-236.0,0.00029184,2]
[377422036,1754404234597,-5835.50103138,0.00029305,2]
[377422038,1754404234607,-1680.0,0.00029312,2]
[377422040,1754404234616,-2722.80769984,0.00029373,2]
[377422042,1754404234626,-643.13958606,0.00029376,11]
[377422044,1754404234636,-636.0,0.00029401,2]
[377422046,1754404234645,-2148.0,0.00029401,2]
[377422048,1754404234654,-971.0,0.00029401,2]
[377422050,1754404234664,-411.587,0.00029401,2]
[377422052,1754404234676,-410.804,0.00029401,2]
[377422054,1754404234686,-2300.0,0.00029517,7]
[377422056,1754404234695,-1000.0,0.00029521,5]
[377422058,1754404234704,-432.43287356,0.00029524,2]
[377422060,1754404234713,-260.0,0.00029655,2]
[377422061,1754404234723,-306.8286726,0.00029684,30]
[377422063,1754404234732,-200.0,0.00029695,15]
[377422065,1754404234741,-300.0,0.00029695,15]
[377422068,1754404234752,-1000.0,0.000298,30]
[377422069,1754404234761,-17570.24005247,0.000299,2]
[377422071,1754404234770,-644.0,0.000299,2]
[377422073,1754404234779,-500.0,0.0002996,11]
[377422076,1754404234789,-500.0,0.0002996,11]
[377422078,1754404234798,-5835.50103138,0.00029962,2]
[377422080,1754404234807,-539.21,0.0002997,3]
[377422081,1754404234816,-500.0,0.00029973,5]
[377422083,1754404234825,-500.0,0.00029973,5]
[377422084,1754404234834,-179.72,0.0002998,3]
[377422085,1754404234843,-1437.77,0.0002999,3]
[377422086,1754404234852,-718.89,0.0002999,3]
[377422087,1754404234861,-359.44,0.0002999,3]
[377422089,1754404234871,-13037.38,0.0003,2]
[377422091,1754404234880,-800.0,0.0003,3]
[377422093,1754404234889,-1000.0,0.0003,3]
[377422095,1754404234898,-325.0,0.0003,7]
[377422097,1754404234907,-325.0,0.0003,7]
[377422099,1754404234916,-325.0,0.0003,7]
[377422101,1754404234928,-325.0,0.0003,7]
[377422103,1754404234938,-1500.0,0.00030068,5]
[377422105,1754404234947,-488.81193705,0.00030088,2]
[377422107,1754404234956,-170.09641049,0.00030095,2]
[377422109,1754404234966,-4061.0,0.00030137,2]
[377422111,1754404234977,-360.0,0.00030203,2]
[377422113,1754404234994,-1725.33,0.00030205,3]
[377422115,1754404235005,-150.493,0.00030214,2]
[377422117,1754404235015,-222.706,0.00030214,2]
[377422118,1754404235042,-150.156,0.00030214,2]
[377422120,1754404235052,-150.0,0.00030214,2]
[377422122,1754404235062,-10000.0,0.00030215,2]
[377422124,1754404235071,-5835.50103138,0.0003028,2]
[377422126,1754404235081,-1765.87961715,0.0003029,2]
[377422128,1754404235090,-1765.87961714,0.00030295,2]
[377422130,1754404235100,-276.6,0.000303,2]
[377422132,1754404235109,-170.09641049,0.000303,2]
[377422134,1754404235119,-1765.87961714,0.000303,2]
[377422136,1754404235128,-10677.61847706,0.000303,2]
[377422138,1754404235137,-2300.0,0.00030339,7]
[377422140,1754404235146,-216.4206905,0.00030339,7]
[377422142,1754404235157,-160.0,0.00030339,7]
[377422144,1754404235166,-12655.02535889,0.00030339,7]
[377422146,1754404235179,-461.15695721,0.00030339,7]
[377422148,1754404235189,-23009.51934145,0.00030352,2]
[377422150,1754404235198,-500.0,0.00030373,5]
[377422152,1754404235207,-500.0,0.00030373,5]
[377422154,1754404235217,-268.51584841,0.00030373,5]
[377422156,1754404235226,-150.0,0.00030373,5]
[377422158,1754404235235,-277.42,0.0003039,3]
[377422160,1754404235244,-832.3,0.0003039,3]
[377422162,1754404235254,-99203.5175335,0.0003039,2]
[377422164,1754404235263,-200.0,0.00030399,10]
[377422166,1754404235273,-347.61803668,0.00030399,10]
[377422168,1754404235282,-5753.68768822,0.000304,2]
[377422170,1754404235291,-151.0,0.000304,19]
[377422180,1754404235301,-155344.81554253,0.000304,4]
[377422349,1754404238032,4568.68488144,0.00026575,2]
[377422350,1754404238059,431.31511856,0.00026575,2]
[377422359,1754404239105,-19429.53237912,0.000304,4]
[377422360,1754404239117,-1310366.56504216,0.000304,4]
[377422361,1754404239128,-231686.74730029,0.000304,4]
[377422362,1754404239139,-728.22040193,0.000304,4]
[377422363,1754404239151,-828.59959807,0.000304,4]
[377422364,1754404239162,-3574.89999999,0.000304,4]
[377422365,1754404239173,-4526.60367111,0.000304,4]
[377422366,1754404239186,-8250.0,0.000304,4]
[377422372,1754404241814,150.0,0.00025725,2]
[377422445,1754404244620,-12244.000001,0.0002699,2]
[377422446,1754404244641,-87755.999999,0.0002699,2]
[377422447,1754404244657,-164.3310937,0.00026994,2]
[377422448,1754404244674,-500.0,0.00026994,2]
[377422451,1754404244694,-500.0,0.00026994,2]
[377422453,1754404244710,-353.34,0.00026994,2]
[377422454,1754404244725,-23906.3289073,0.000304,4]
[377422455,1754404244758,-371.46831926,0.000304,4]
[377422488,1754404248313,-22702.0,0.000304,4]
[377422489,1754404248906,-211.02126521,0.000304,4]
[377422490,1754404255053,5000.0,0.00026575,2]
[377422491,1754404260303,5079.3141426,0.00030529,35]
[377422492,1754404260768,2152.05744464,0.000249,2]
[377422493,1754404260874,2152.05744437,0.000249,2]
[377422494,1754404260974,114.56999243,0.000249,2]
[377422495,1754404261011,2037.48745194,0.000249,2]
[377422496,1754404261054,2152.05744437,0.000249,2]
[377422497,1754404261172,2152.05744437,0.000249,2]
[377422498,1754404261267,2152.05744437,0.000249,2]
[377422499,1754404261363,1506.34021495,0.000249,2]
[377422500,1754404261398,645.71722942,0.000249,2]
[377422501,1754404261458,2152.05744437,0.000249,2]
[377422502,1754404261560,2152.05744437,0.00025455,3]
[377422503,1754404268218,181.22591477,0.000253,2]
[377422507,1754404274424,4868.94196707,0.00026575,2]
[377422508,1754404274458,131.05803293,0.00026575,2]
[377422509,1754404290971,5000.0,0.00026575,2]
[377422511,1754404307138,150.0,0.00025298,2]
[377422512,1754404307465,4718.94196707,0.00026575,2]
[377422513,1754404307494,281.05803293,0.00026575,2]
[377422515,1754404324678,5000.0,0.00026575,2]
[377422516,1754404340817,4718.94196707,0.00026575,2]
[377422517,1754404340844,281.05803293,0.00026575,2]
[377422518,1754404356742,5000.0,0.00026575,2]
[377422520,1754404372421,150.0,0.00024926,2]
[377422521,1754404372845,150.0,0.00026113,2]
[377422522,1754404373916,4418.94196707,0.00026575,2]
[377422523,1754404373946,581.05803293,0.00026575,2]
[377422524,1754404376445,-211.0,0.00026762,6]
[377422525,1754404390529,5000.0,0.00026575,2]
[377422526,1754404406937,4418.94196707,0.00026575,2]
[377422527,1754404406962,581.05803293,0.00026575,2]
[377422528,1754404424241,5000.0,0.00026575,2]
[377422529,1754404431897,2123.11450634,0.000249,2]
[377422530,1754404431997,2123.11450633,0.000249,2]
[377422531,1754404432128,172.7129544,0.000249,2]
[377422532,1754404432161,1950.40155193,0.000249,2]
[377422533,1754404432319,2123.11450633,0.000249,2]
[377422534,1754404432427,2123.11450633,0.000249,2]
[377422535,1754404432528,2123.11450633,0.000249,2]
[377422536,1754404432665,1680.25492908,0.000249,2]
[377422537,1754404432697,442.85957725,0.000249,2]
[377422538,1754404432958,2123.11450633,0.000249,2]
[377422539,1754404433074,2123.11450633,0.00025455,3]
[377422543,1754404438860,10000.0,0.00030524,30]
[377422544,1754404456203,10000.0,0.00030524,30]
[377422545,1754404456239,5000.0,0.00026575,2]
[377422547,1754404472851,310.91141009,0.00026575,2]
[377422548,1754404472878,4689.08858991,0.00026575,2]
[377422550,1754404499002,162.544055,0.00025778,2]
[377422551,1754404499330,221.15156193,0.00025959,2]
[377422552,1754404597634,1741.1800416,0.000249,2]
[377422553,1754404597750,1741.18004151,0.000249,2]
[377422554,1754404597846,1444.85571005,0.000249,2]
[377422555,1754404597884,296.32433146,0.000249,2]
[377422556,1754404597945,1741.18004151,0.000249,2]
[377422557,1754404598038,1741.18004151,0.000249,2]
[377422558,1754404598141,1741.18004151,0.000249,2]
[377422559,1754404598233,1741.18004151,0.000249,2]
[377422560,1754404598378,1741.18004151,0.000249,2]
[377422561,1754404598446,997.77546099,0.00025455,3]
[377422562,1754404598484,743.40458052,0.00025455,3]
[377422567,1754404622218,295.9125509,0.0002609,2]
[377422573,1754404755798,1669.93429622,0.000249,2]
[377422574,1754404755901,1669.93429608,0.000249,2]
[377422575,1754404756010,1669.93429608,0.000249,2]
[377422576,1754404756090,1669.93429608,0.000249,2]
[377422577,1754404756178,1669.93429608,0.000249,2]
[377422578,1754404756261,611.01138804,0.000249,2]
[377422579,1754404756294,1058.92290804,0.000249,2]
[377422580,1754404756357,1669.93429608,0.000249,2]
[377422581,1754404756448,1669.93429608,0.000249,2]
[377422582,1754404756567,1669.93429608,0.00025455,3]
[377422586,1754404764376,3931.27420372,0.00026575,2]
[377422587,1754404764403,1068.72579628,0.00026575,2]
[377422588,1754404780836,5000.0,0.00026575,2]
[377422589,1754404790842,165.692301,0.0002608,2]
[377422590,1754404799393,3765.58190272,0.00026575,2]
[377422591,1754404799419,1234.41809728,0.00026575,2]
[377422592,1754404810655,1403.62456691,0.000249,2]
[377422593,1754404810760,1403.6245668,0.000249,2]
[377422594,1754404810865,1403.6245668,0.000249,2]
[377422595,1754404810987,1403.6245668,0.000249,2]
[377422596,1754404811086,1403.6245668,0.000249,2]
[377422597,1754404811246,1403.6245668,0.000249,2]
[377422598,1754404811338,343.83450181,0.000249,2]
[377422599,1754404811377,1059.79006499,0.000249,2]
[377422600,1754404811429,1403.6245668,0.000249,2]
[377422601,1754404811494,1403.6245668,0.00025455,3]
[377422602,1754404817018,5000.0,0.00026575,2]
[377422603,1754404833421,1132.96080141,0.00026575,2]
[377422604,1754404833451,3867.03919859,0.00026575,2]
[377422606,1754404851239,5000.0,0.00026575,2]
[377422607,1754404867583,1132.96080141,0.00026575,2]
[377422608,1754404867612,3867.03919859,0.00026575,2]
[377422609,1754404884565,5000.0,0.00026575,2]
[377422610,1754404890600,150.0,0.00024421,2]
[377422612,1754404901896,501.38211044,0.00026575,2]
[377422613,1754404904398,152.0,0.0003,120]
[377422614,1754404908716,152.0,0.0003,120]
[377422616,1754404912977,481.57869097,0.000249,2]
[377422617,1754404913014,1050.47224755,0.000249,2]
[377422618,1754404913065,1532.05093834,0.000249,2]
[377422619,1754404913153,1532.05093834,0.000249,2]
[377422620,1754404913263,1532.05093834,0.000249,2]
[377422621,1754404913375,1532.05093834,0.000249,2]
[377422622,1754404913471,1532.05093834,0.000249,2]
[377422623,1754404913570,1289.27306075,0.000249,2]
[377422624,1754404913613,242.77787759,0.000249,2]
[377422625,1754404913665,1532.05093834,0.000249,2]
[377422626,1754404914683,-228.03741498,0.00025455,3]
[377422629,1754404918260,-232.24787401,0.00025455,3]
[377422630,1754404920589,-247.61893621,0.00025455,3]
[377422631,1754404923736,-209.77495428,0.00025455,3]
[377422633,1754404928802,-372.66,0.00025455,3]
[377422634,1754404931384,-241.71175886,0.00025455,3]
[377422635,1754404956984,150.0,0.0002441,2]
[377422636,1754404960032,51.28824114,0.000254,2]
[377422637,1754404983707,200.0,0.00030137,120]
[377422638,1754405003493,-100.71175886,0.000254,2]
[377422639,1754405003515,-152.0,0.000254,2]
[377422641,1754405070959,1255.60690413,0.000249,2]
[377422642,1754405071068,1255.60690403,0.000249,2]
[377422643,1754405072012,300.0,0.000249,2]
[377422644,1754405072057,955.60690403,0.000249,2]
[377422645,1754405072261,1255.60690403,0.000249,2]
[377422646,1754405072310,1255.60690403,0.000249,2]
[377422647,1754405078590,1255.60690403,0.000249,2]
[377422648,1754405078815,1255.60690403,0.000249,2]
[377422649,1754405078901,1255.60690403,0.000249,2]
[377422656,1754405134553,-1255.60690403,0.00025455,3]
[377422669,1754405254714,879.93921388,0.000249,2]
[377422670,1754405254850,879.93921378,0.000249,2]
[377422671,1754405254957,879.93921378,0.000249,2]
[377422672,1754405255091,879.93921378,0.000249,2]
[377422673,1754405255228,879.93921378,0.000249,2]
[377422674,1754405255456,879.93921378,0.000249,2]
[377422675,1754405255698,879.93921378,0.000249,2]